fUST/lending_fUST_20240228
["ID","MTS","AMOUNT","RATE_DAILY","PERIOD"]
[315571316,1709131839461,-155.10236756,0.00016886,2]
[315571317,1709131839471,-1863.17330942,0.00016886,2]
[315571319,1709131839481,-8007.23444251,0.00016886,2]
[315571321,1709131839491,-3000.0,0.00016887,2]
[315571322,1709131839500,-2111.64420487,0.00017882,2]
[315571324,1709131839510,-155.10236756,0.00017882,2]
[315571326,1709131839519,-703.08553243,0.00017882,2]
[315571328,1709131839529,-527.76651352,0.00017883,2]
[315571330,1709131839538,-538.27532223,0.00017883,2]
[315571332,1709131839547,-592.46406366,0.00017884,2]
[315571334,1709131839556,-155.10236756,0.00017884,2]
[315571336,1709131839565,-15232.41076204,0.00017886,2]
[315571338,1709131839575,-400.75162755,0.00017886,2]
[315571340,1709131839585,-3137.37002068,0.0001794,2]
[315571342,1709131839594,-5444.5321749,0.00018,2]
[315571344,1709131839604,-458.48756648,0.000189,2]
[315571346,1709131839612,-1213.00670701,0.00019177,2]
[315571348,1709131839622,-1212.90960336,0.00019177,2]
[315571350,1709131839631,-500.0,0.00019178,2]
[315571352,1709131839641,-500.0,0.00019178,2]
[315571354,1709131839650,-500.0,0.00019178,2]
[315571356,1709131839660,-551.06,0.00019178,2]
[315571358,1709131839670,-500.0,0.00019178,2]
[315571360,1709131839684,-500.0,0.00019178,2]
[315571361,1709131839693,-500.0,0.00019178,2]
[315571376,1709131839830,-172.36241238,0.00019178,2]
[315571378,1709131839842,-500.0,0.00019178,2]
[315571380,1709131839852,-500.0,0.00019178,2]
[315571382,1709131839860,-500.0,0.00019178,2]
[315571384,1709131839870,-500.0,0.00019178,2]
[315571386,1709131839880,-500.0,0.00019178,2]
[315571388,1709131839890,-500.0,0.00019178,2]
[315571389,1709131839899,-504.70722091,0.00019178,2]
[315571391,1709131839908,-601.95546096,0.00019178,2]
[315571393,1709131839917,-500.0,0.00019178,2]
[315571395,1709131839930,-391.73540002,0.00019178,2]
[315571397,1709131839939,-1167.81,0.00019178,2]
[315571399,1709131839949,-533.88,0.00019178,2]
[315571401,1709131839958,-500.0,0.00019178,2]
[315571403,1709131839968,-500.0,0.00019178,2]
[315571405,1709131839978,-879.47,0.00019178,2]
[315571407,1709131839987,-500.0,0.00019178,2]
[315571409,1709131839996,-544.01,0.00019178,2]
[315571412,1709131840006,-500.0,0.00019178,2]
[315571414,1709131840017,-3213.83,0.00019178,2]
[315571416,1709131840027,-500.0,0.00019178,2]
[315571417,1709131840038,-500.0,0.00019178,2]
[315571419,1709131840048,-500.0,0.00019178,2]
[315571421,1709131840057,-785.34,0.00019178,2]
[315571424,1709131840067,-1674.49,0.00019178,2]
[315571426,1709131840076,-500.0,0.00019178,2]
[315571427,1709131840086,-613.1,0.00019178,2]
[315571429,1709131840096,-500.0,0.00019178,2]
[315571432,1709131840106,-504.19,0.00019178,2]
[315571434,1709131840115,-1127.93,0.00019178,2]
[315571436,1709131840124,-577.31,0.00019178,2]
[315571437,1709131840135,-1079.05,0.00019178,2]
[315571439,1709131840144,-643.06,0.00019178,2]
[315571442,1709131840154,-500.0,0.00019178,2]
[315571443,1709131840163,-500.0,0.00019178,2]
[315571445,1709131840172,-710.26,0.00019178,2]
[315571447,1709131840183,-7829.42,0.00019178,2]
[315571449,1709131840192,-500.0,0.00019178,2]
[315571451,1709131840202,-3363.01,0.00019178,2]
[315571453,1709131840211,-500.0,0.00019178,2]
[315571455,1709131840220,-500.0,0.00019178,2]
[315571457,1709131840229,-554.21,0.00019178,2]
[315571459,1709131840239,-500.0,0.00019178,2]
[315571461,1709131840248,-500.0,0.00019178,2]
[315571463,1709131840258,-704.97,0.00019178,2]
[315571465,1709131840267,-1293.19,0.00019178,2]
[315571467,1709131840276,-975.84,0.00019178,2]
[315571469,1709131840286,-756.52,0.00019178,2]
[315571471,1709131840295,-500.0,0.00019178,2]
[315571473,1709131840305,-500.0,0.00019178,2]
[315571475,1709131840315,-500.0,0.00019178,2]
[315571477,1709131840324,-500.0,0.00019178,2]
[315571479,1709131840333,-500.0,0.00019178,2]
[315571481,1709131840343,-500.0,0.00019178,2]
[315571483,1709131840352,-504.52087056,0.00019178,2]
[315571485,1709131840362,-927.92,0.00019178,2]
[315571487,1709131840371,-500.0,0.00019178,2]
[315571489,1709131840380,-7577.46,0.00019178,2]
[315571491,1709131840389,-500.0,0.00019178,2]
[315571493,1709131840398,-443.88223375,0.00019178,2]
[315571495,1709131840408,-500.0,0.00019178,2]
[315571497,1709131840417,-500.0,0.00019178,2]
[315571499,1709131840428,-1091.45,0.00019178,2]
[315571501,1709131840438,-500.0,0.00019178,2]
[315571503,1709131840447,-1065.77,0.00019178,2]
[315571505,1709131840456,-164.874523,0.00019178,2]
[315571507,1709131840466,-166.666666,0.00019178,2]
[315571509,1709131840475,-500.0,0.00019452,2]
[315571511,1709131840485,-546.76,0.00019452,2]
[315571513,1709131840494,-551.06,0.00019452,2]
[315571515,1709131840503,-500.0,0.00019452,2]
[315571517,1709131840512,-500.0,0.00019452,2]
[315571519,1709131840522,-500.0,0.00019452,2]
[315571521,1709131840531,-502.34843304,0.00019452,2]
[315571523,1709131840541,-500.0,0.00019452,2]
[315571525,1709131840550,-500.0,0.00019452,2]
[315571527,1709131840560,-500.0,0.00019452,2]
[315571529,1709131840569,-1167.81,0.00019452,2]
[315571531,1709131840578,-533.88,0.00019452,2]
[315571533,1709131840587,-500.0,0.00019452,2]
[315571535,1709131840596,-500.0,0.00019452,2]
[315571537,1709131840605,-879.47,0.00019452,2]
[315571539,1709131840613,-544.01,0.00019452,2]
[315571541,1709131840622,-500.0,0.00019452,2]
[315571543,1709131840631,-3213.83,0.00019452,2]
[315571545,1709131840641,-500.0,0.00019452,2]
[315571547,1709131840650,-500.0,0.00019452,2]
[315571549,1709131840660,-500.0,0.00019452,2]
[315571551,1709131840669,-785.34,0.00019452,2]
[315571553,1709131840682,-1674.49,0.00019452,2]
[315571555,1709131840692,-613.1,0.00019452,2]
[315571557,1709131840701,-500.0,0.00019452,2]
[315571559,1709131840711,-504.19,0.00019452,2]
[315571561,1709131840722,-1127.93,0.00019452,2]
[315571563,1709131840732,-1079.05,0.00019452,2]
[315571565,1709131840741,-643.06,0.00019452,2]
[315571567,1709131840752,-500.0,0.00019452,2]
[315571569,1709131840763,-710.26,0.00019452,2]
[315571571,1709131840773,-7829.42,0.00019452,2]
[315571573,1709131840782,-3363.01,0.00019452,2]
[315571575,1709131840793,-281.98,0.00019452,2]
[315571577,1709131840802,-554.21,0.00019452,2]
[315571579,1709131840813,-704.97,0.00019452,2]
[315571581,1709131840822,-1293.19,0.00019452,2]
[315571583,1709131840832,-975.84,0.00019452,2]
[315571585,1709131840841,-756.52,0.00019452,2]
[315571588,1709131840851,-500.0,0.00019452,2]
[315571590,1709131840860,-500.0,0.00019452,2]
[315571592,1709131840869,-927.92,0.00019452,2]
[315571593,1709131840878,-7577.46,0.00019452,2]
[315571595,1709131840888,-500.0,0.00019452,2]
[315571597,1709131840897,-500.0,0.00019452,2]
[315571599,1709131840906,-591.02,0.00019452,2]
[315571601,1709131840915,-1091.45,0.00019452,2]
[315571603,1709131840926,-1065.77,0.00019452,2]
[315571605,1709131840935,-8232.02435619,0.00019625,2]
[315571607,1709131840945,-54687.1856651,0.00019626,2]
[315571609,1709131840954,-166.666666,0.00019627,2]
[315571611,1709131840963,-500.0,0.00019726,2]
[315571613,1709131840973,-551.06,0.00019726,2]
[315571615,1709131840983,-500.0,0.00019726,2]
[315571618,1709131840992,-500.0,0.00019726,2]
[315571620,1709131841002,-500.0,0.00019726,2]
[315571621,1709131841011,-403.6594954,0.00019726,2]
[315571623,1709131841020,-1167.81,0.00019726,2]
[315571625,1709131841030,-533.88,0.00019726,2]
[315571627,1709131841038,-272.92,0.00019726,2]
[315571630,1709131841048,-879.47,0.00019726,2]
[315571632,1709131841058,-544.01,0.00019726,2]
[315571634,1709131841067,-500.0,0.00019726,2]
[315571636,1709131841076,-3213.83,0.00019726,2]
[315571638,1709131841089,-540.43198909,0.00019726,2]
[315571640,1709131841101,-785.34,0.00019726,2]
[315571643,1709131841114,-1674.49,0.00019726,2]
[315571645,1709131841126,-613.1,0.00019726,2]
[315571647,1709131841137,-500.0,0.00019726,2]
[315571650,1709131841149,-504.19,0.00019726,2]
[315571652,1709131841160,-1127.93,0.00019726,2]
[315571654,1709131841170,-1079.05,0.00019726,2]
[315571656,1709131841183,-643.06,0.00019726,2]
[315571659,1709131841195,-500.0,0.00019726,2]
[315571661,1709131841206,-710.26,0.00019726,2]
[315571663,1709131841217,-7829.42,0.00019726,2]
[315571665,1709131841228,-3363.01,0.00019726,2]
[315571667,1709131841239,-554.21,0.00019726,2]
[315571670,1709131841250,-704.97,0.00019726,2]
[315571672,1709131841263,-1293.19,0.00019726,2]
[315571674,1709131841274,-975.84,0.00019726,2]
[315571676,1709131841285,-756.52,0.00019726,2]
[315571679,1709131841296,-927.92,0.00019726,2]
[315571681,1709131841307,-7577.46,0.00019726,2]
[315571683,1709131841318,-500.0,0.00019726,2]
[315571685,1709131841328,-214.22,0.00019726,2]
[315571687,1709131841338,-1091.45,0.00019726,2]
[315571689,1709131841348,-1065.77,0.00019726,2]
[315571691,1709131841359,-35488.405,0.00019873,10]
[315571694,1709131841370,-363.517738,0.000199,8]
[315571696,1709131841381,-5214.0,0.0002,2]
[315571698,1709131841391,-500.0,0.0002,2]
[315571700,1709131841403,-551.06,0.0002,2]
[315571702,1709131841414,-499.0,0.0002,2]
[315571705,1709131841426,-500.0,0.0002,2]
[315571707,1709131841438,-1167.81,0.0002,2]
[315571709,1709131841449,-533.88,0.0002,2]
[315571711,1709131841460,-879.47,0.0002,2]
[315571714,1709131841472,-544.01,0.0002,2]
[315571716,1709131841484,-500.0,0.0002,2]
[315571718,1709131841495,-3213.83,0.0002,2]
[315571720,1709131841505,-785.34,0.0002,2]
[315571722,1709131841518,-1674.49,0.0002,2]
[315571724,1709131841529,-613.1,0.0002,2]
[315571727,1709131841543,-500.0,0.0002,2]
[315571729,1709131841554,-504.19,0.0002,2]
[315571731,1709131841565,-1127.93,0.0002,2]
[315571733,1709131841576,-1079.05,0.0002,2]
[315571736,1709131841587,-643.06,0.0002,2]
[315571738,1709131841600,-393.71796714,0.0002,2]
[315571740,1709131841610,-710.26,0.0002,2]
[315571742,1709131841621,-7829.42,0.0002,2]
[315571744,1709131841631,-3363.01,0.0002,2]
[315571747,1709131841642,-554.21,0.0002,2]
[315571749,1709131841654,-704.97,0.0002,2]
[315571751,1709131841665,-1293.19,0.0002,2]
[315571753,1709131841677,-975.84,0.0002,2]
[315571755,1709131841690,-192.30346417,0.0002,2]
[315571757,1709131841702,-756.52,0.0002,2]
[315571760,1709131841714,-927.92,0.0002,2]
[315571762,1709131841726,-7577.46,0.0002,2]
[315571764,1709131841737,-500.0,0.0002,2]
[315571767,1709131841749,-1091.45,0.0002,2]
[315571769,1709131841761,-1065.77,0.0002,2]
[315571771,1709131841774,-238.49844288,0.00020049,2]
[315571773,1709131841785,-626.06990911,0.0002005,6]
[315571776,1709131841796,-166.666666,0.00020076,2]
[315571778,1709131841807,-620.00011682,0.00020207,2]
[315571780,1709131841817,-500.0,0.00020273,2]
[315571782,1709131841827,-551.06,0.00020273,2]
[315571784,1709131841836,-151.161043,0.00020273,2]
[315571786,1709131841846,-151.0,0.00020273,2]
[315571788,1709131841856,-500.0,0.00020273,2]
[315571790,1709131841867,-234.144167,0.00020273,2]
[315571793,1709131841878,-151.0,0.00020273,2]
[315571795,1709131841889,-1167.81,0.00020273,2]
[315571797,1709131841900,-533.88,0.00020273,2]
[315571799,1709131841912,-879.47,0.00020273,2]
[315571801,1709131841922,-544.01,0.00020273,2]
[315571804,1709131841936,-500.0,0.00020273,2]
[315571806,1709131841947,-3213.83,0.00020273,2]
[315571808,1709131841958,-785.34,0.00020273,2]
[315571810,1709131841968,-1674.49,0.00020273,2]
[315571812,1709131841978,-613.1,0.00020273,2]
[315571814,1709131841988,-500.0,0.00020273,2]
[315571816,1709131841998,-504.19,0.00020273,2]
[315571819,1709131842008,-1127.93,0.00020273,2]
[315571821,1709131842018,-1079.05,0.00020273,2]
[315571823,1709131842029,-643.06,0.00020273,2]
[315571825,1709131842039,-710.26,0.00020273,2]
[315571827,1709131842050,-7829.42,0.00020273,2]
[315571829,1709131842060,-3363.01,0.00020273,2]
[315571831,1709131842070,-554.21,0.00020273,2]
[315571833,1709131842081,-704.97,0.00020273,2]
[315571835,1709131842092,-1293.19,0.00020273,2]
[315571838,1709131842103,-975.84,0.00020273,2]
[315571840,1709131842114,-756.52,0.00020273,2]
[315571842,1709131842125,-927.92,0.00020273,2]
[315571844,1709131842135,-7577.46,0.00020273,2]
[315571846,1709131842145,-500.0,0.00020273,2]
[315571848,1709131842155,-1091.45,0.00020273,2]
[315571850,1709131842166,-1065.77,0.00020273,2]
[315571852,1709131842177,-1000.0,0.00020299,5]
[315571854,1709131842188,-1607.48011166,0.00020299,3]
[315571857,1709131842199,-1000.0,0.00020299,5]
[315571859,1709131842211,-928.95887545,0.00020299,3]
[315571861,1709131842221,-1000.0,0.00020299,5]
[315571863,1709131842232,-930.7078467,0.00020299,3]
[315571865,1709131842243,-1000.0,0.00020299,5]
[315571867,1709131842253,-1000.0,0.00020299,5]
[315571869,1709131842263,-394.84726781,0.00020299,3]
[315571871,1709131842273,-1000.0,0.00020299,5]
[315571873,1709131842283,-1000.0,0.00020299,5]
[315571875,1709131842294,-1000.0,0.00020299,5]
[315571878,1709131842304,-1000.0,0.00020299,5]
[315571880,1709131842314,-628.44171298,0.00020299,3]
[315571882,1709131842324,-1000.0,0.00020299,5]
[315571884,1709131842334,-1000.0,0.00020299,5]
[315571886,1709131842344,-1000.0,0.00020299,5]
[315571888,1709131842355,-322.65305014,0.00020299,2]
[315571890,1709131842365,-662.57231724,0.00020299,3]
[315571892,1709131842375,-1000.0,0.00020299,5]
[315571894,1709131842386,-192.64226815,0.00020299,3]
[315571896,1709131842396,-1000.0,0.00020299,5]
[315571898,1709131842406,-350.10934807,0.00020299,3]
[315571900,1709131842417,-795.56823639,0.00020299,3]
[315571903,1709131842429,-35039.77841182,0.00020299,3]
[315571905,1709131842440,-662.57912017,0.00020299,3]
[315571907,1709131842450,-5000.0,0.00020309,5]
[315571909,1709131842460,-7112.44223792,0.00020309,3]
[315571911,1709131842470,-5000.0,0.00020309,5]
[315571913,1709131842480,-5000.0,0.00020309,5]
[315571935,1709131842619,-19161.88162365,0.00020309,2]
[315571939,1709131842637,-5000.0,0.00020309,5]
[315571942,1709131842648,-5000.0,0.00020309,5]
[315571946,1709131842659,-5000.0,0.00020309,5]
[315571950,1709131842668,-17172.82639776,0.00020309,3]
[315571954,1709131842680,-235.249189,0.00020309,2]
[315571957,1709131842691,-190.914404,0.00020309,2]
[315571960,1709131842701,-5000.0,0.00020309,5]
[315571962,1709131842711,-1212.90960336,0.00020328,2]
[315571964,1709131842721,-500.0,0.00020399,2]
[315571966,1709131842731,-500.0,0.00020491,2]
[315571968,1709131842740,-166.666666,0.00020524,2]
[315571970,1709131842749,-379.657685,0.00020547,2]
[315571972,1709131842760,-551.06,0.00020547,2]
[315571974,1709131842769,-500.0,0.00020547,2]
[315571976,1709131842779,-1167.81,0.00020547,2]
[315571978,1709131842789,-533.88,0.00020547,2]
[315571980,1709131842798,-879.47,0.00020547,2]
[315571982,1709131842808,-544.01,0.00020547,2]
[315571984,1709131842817,-500.0,0.00020547,2]
[315571986,1709131842826,-3213.83,0.00020547,2]
[315571990,1709131842836,-785.34,0.00020547,2]
[315571991,1709131842845,-1674.49,0.00020547,2]
[315571994,1709131842855,-613.1,0.00020547,2]
[315571995,1709131842865,-500.0,0.00020547,2]
[315571997,1709131842874,-504.19,0.00020547,2]
[315572000,1709131842884,-1127.93,0.00020547,2]
[315572002,1709131842893,-1079.05,0.00020547,2]
[315572004,1709131842902,-643.06,0.00020547,2]
[315572005,1709131842912,-710.26,0.00020547,2]
[315572007,1709131842922,-7829.42,0.00020547,2]
[315572009,1709131842934,-3363.01,0.00020547,2]
[315572011,1709131842943,-554.21,0.00020547,2]
[315572014,1709131842953,-704.97,0.00020547,2]
[315572015,1709131842963,-1293.19,0.00020547,2]
[315572017,1709131842972,-975.84,0.00020547,2]
[315572019,1709131842981,-756.52,0.00020547,2]
[315572021,1709131842990,-927.92,0.00020547,2]
[315572023,1709131842999,-7577.46,0.00020547,2]
[315572025,1709131843009,-235.3,0.00020547,2]
[315572027,1709131843018,-1091.45,0.00020547,2]
[315572029,1709131843027,-1065.77,0.00020547,2]
[315572031,1709131843036,-500.0,0.00020582,2]
[315572033,1709131843045,-16856.43876846,0.00020652,7]
[315572047,1709131843154,-2520.91625891,0.00020652,7]
[315572049,1709131843166,-980.2003933,0.00020652,7]
[315572060,1709131843357,-592.46406366,0.00016881,2]
[315572061,1709131843367,-312.33143877,0.00016882,2]
[315572062,1709131843376,-135.08019484,0.00016882,2]
[315572063,1709131843387,-1584.20563113,0.00016882,2]
[315572064,1709131843396,-500.0,0.00020298,2]
[315572065,1709131843405,-72.37080052,0.00020298,2]
[315572389,1709131846234,-500.0,0.00019178,2]
[315572391,1709131846244,-500.0,0.00019452,2]
[315572393,1709131846254,-500.0,0.00019726,2]
[315572395,1709131846264,-500.0,0.0002,2]
[315572396,1709131846274,-500.0,0.00020273,2]
[315572399,1709131846285,-430.47624919,0.00020298,2]
[315572401,1709131846295,-500.0,0.00020298,2]
[315572402,1709131846306,-324.9752131,0.00020298,2]
[315572404,1709131846316,-412.53102785,0.00020298,2]
[315572406,1709131846328,-511.98052571,0.00020298,2]
[315572408,1709131846339,-500.0,0.00020298,2]
[315572410,1709131846349,-500.0,0.00020298,2]
[315572412,1709131846359,-500.0,0.00020298,2]
[315572415,1709131846370,-500.0,0.00020298,2]
[315572416,1709131846381,-500.0,0.00020298,2]
[315572418,1709131846392,-26210.76575017,0.00020652,7]
[315577080,1709132910143,3000.0,0.00016822,2]
[315577081,1709132931662,207.32951573,0.0001781,30]
[315577146,1709133034282,-719.31845796,0.00017803,2]
[315577147,1709133034291,-1719.28582597,0.00017803,2]
[315577149,1709133034301,-155.17690167,0.00017804,2]
[315577151,1709133034310,-335.38621126,0.00017804,2]
[315577199,1709133040027,-290.02402273,0.00017801,2]
[315577201,1709133040042,-179.53546718,0.00017802,2]
[315577203,1709133040052,-2457.81887025,0.00017802,2]
[315577205,1709133040062,-15232.41076204,0.00017802,2]
[315577207,1709133040072,-703.08553243,0.00017802,2]
[315577209,1709133040083,-202.88911097,0.00017804,2]
[315577211,1709133040093,-312.33143877,0.00017805,2]
[315577213,1709133040103,-4975.09925998,0.00017805,2]
[315577215,1709133040117,-3032.13518253,0.00017805,2]
[315577217,1709133040127,-527.76651352,0.00017805,2]
[315577219,1709133040138,-1486.02769051,0.00017805,2]
[315577221,1709133040152,-502.41212574,0.00017805,2]
[315577237,1709133040296,-2305.08239742,0.00017805,2]
[315577239,1709133040310,-407.07792718,0.00017805,2]
[315577241,1709133040321,-557.45474321,0.00017805,2]
[315577243,1709133040331,-1291.69766961,0.00017806,2]
[315577245,1709133040345,-1281.99195587,0.00017806,2]
[315577248,1709133040357,-592.46406366,0.00017806,2]
[315577249,1709133040367,-155.17068776,0.00017806,2]
[315577250,1709133040377,-1026.27268324,0.00017806,2]
[315577290,1709133042111,-1863.17330942,0.00017803,2]
[315577292,1709133042122,-1085.37152163,0.00017806,2]
[315577294,1709133042133,-155.17068776,0.00017807,2]
[315577296,1709133042145,-155.69178995,0.00017807,2]
[315577298,1709133042157,-155.17068776,0.00017807,2]
[315577300,1709133042168,-400.75162755,0.00017808,2]
[315577302,1709133042181,-151.28118314,0.00019068,2]
[315577304,1709133042193,-909.96989279,0.00019167,2]
[315577444,1709133043355,-4534.56228211,0.00019167,2]
[315577445,1709133043365,-7112.71028429,0.00019168,2]
[315577446,1709133043374,-3784.15811249,0.00019168,2]
[315577447,1709133043383,-446.68926484,0.00019168,3]
[315577712,1709133046251,-313.47073516,0.00019168,3]
[315577714,1709133046261,-500.0,0.00019178,2]
[315577716,1709133046271,-281.18637331,0.00019178,2]
[315577732,1709133046412,-765.71362669,0.00019178,2]
[315577734,1709133046421,-500.0,0.00019178,2]
[315577736,1709133046432,-500.0,0.00019178,2]
[315577738,1709133046441,-500.0,0.00019178,2]
[315577740,1709133046450,-500.0,0.00019178,2]
[315577742,1709133046459,-500.0,0.00019178,2]
[315577744,1709133046468,-500.0,0.00019178,2]
[315577746,1709133046477,-278.54941175,0.00019178,2]
[315577748,1709133046489,-221.45058825,0.00019178,2]
[315577750,1709133046498,-242.63658915,0.00019178,2]
[315582040,1709133219453,202.0,0.0002849,120]
[315582041,1709133351874,57.180826,0.00028493,120]
[315582056,1709133381237,2530.0926992,0.0001675,2]
[315582086,1709133566495,347.098415,0.00016137,2]
[315582087,1709133700494,217.110509,0.0001612,2]
[315582100,1709133785437,154.63807039,0.00015558,2]
[315582101,1709133807602,21063.15202,0.00016188,2]
[315582102,1709133831219,527.76651352,0.00017099,2]
[315582103,1709133833074,592.46406366,0.00017099,2]
[315582104,1709133840291,557.45474321,0.00017099,2]
[315582105,1709133840748,4700.60014085,0.00017099,2]
[315582106,1709133842577,538.27532223,0.00017099,2]
[315582107,1709133843407,719.31845796,0.00017099,2]
[315582108,1709133844636,15232.41076204,0.00017099,2]
[315582109,1709133847132,155.18933098,0.00017099,2]
[315582110,1709133847632,1863.17330942,0.00017099,2]
[315582111,1709133849334,290.02402273,0.00017099,2]
[315582112,1709133849426,2573.68962548,0.00017099,2]
[315582113,1709133853888,155.18933098,0.00017099,2]
[315582114,1709133854264,155.18933098,0.00017099,2]
[315582115,1709133854425,155.18933098,0.00017099,2]
[315582116,1709133857023,703.08553243,0.00017099,2]
[315582117,1709133865140,155.69178995,0.00017099,2]
[315582118,1709133866726,8007.23444251,0.00017099,2]
[315582119,1709133869321,4717.50263004,0.00017099,2]
[315582120,1709133871672,1603.92253255,0.00017099,2]
[315582121,1709133872821,1719.28582597,0.00017099,2]
[315582122,1709133875224,2397.5439735,0.00016107,2]
[315582123,1709133880938,179.53546718,0.00017099,2]
[315582130,1709133936144,250.0,0.00016946,2]
[315582131,1709133948039,151.91257204,0.00016355,2]
[315582142,1709133961756,2111.64420487,0.00017099,2]
[315582148,1709134014680,9157.20519668,0.000192,6]
[315582209,1709134090329,557.45474321,0.00017099,2]
[315582210,1709134091252,527.76651352,0.00017099,2]
[315582211,1709134100633,538.27532223,0.00017099,2]
[315582212,1709134102453,155.19399249,0.00017099,2]
[315582213,1709134104755,290.02402273,0.00017099,2]
[315582214,1709134109174,155.19399249,0.00017099,2]
[315582215,1709134111183,155.69178995,0.00017099,2]
[315582216,1709134113491,719.31845796,0.00017099,2]
[315582217,1709134115578,703.08553243,0.00017099,2]
[315582218,1709134119597,1863.17330942,0.00017099,2]
[315582219,1709134121108,592.46406366,0.00017099,2]
[315582226,1709134132664,2457.81887025,0.00017099,2]
[315582227,1709134136909,179.53546718,0.00017099,2]
[315582232,1709134165182,312.33143877,0.00017099,2]
[315582239,1709134169680,312.33143877,0.00017099,2]
[315582295,1709134236460,-2111.64420487,0.00017667,2]
[315582297,1709134236472,-3983.35579513,0.00017667,2]
[315582393,1709134238615,-1006.46867196,0.00017667,2]
[315582394,1709134238687,-4079.38239053,0.00017667,2]
[315582413,1709134241589,-8007.23444251,0.00017666,2]
[315582414,1709134241599,-400.75162755,0.00017666,2]
[315582415,1709134241607,-3386.10298667,0.00017667,2]
[315582416,1709134241619,-843.94215077,0.00017667,2]
[315582417,1709134241631,-1933.15876698,0.00017667,2]
[315582418,1709134241640,-3050.5311316,0.00017672,2]
[315582419,1709134241651,-173.46476785,0.000179,2]
[315582420,1709134241660,-5444.5321749,0.00018,2]
[315582421,1709134241670,-557.45474321,0.00018897,2]
[315582422,1709134241679,-538.27532223,0.00018897,2]
[315582423,1709134241690,-527.76651352,0.00018898,2]
[315582424,1709134241699,-1036.15238508,0.00018899,3]
[315582425,1709134241709,-1136.23245572,0.000189,2]
[315582426,1709134241718,-179.53546718,0.00019073,2]
[315582427,1709134241727,-155.19399249,0.00019074,2]
[315582428,1709134241737,-1863.17330942,0.00019074,2]
[315582429,1709134241747,-703.08553243,0.00019075,2]
[315582430,1709134241756,-155.69178995,0.00019075,2]
[315582431,1709134241765,-548.02985048,0.00019075,2]
[315582432,1709134241778,-171.28860748,0.00019075,2]
[315582433,1709134241787,-736.72976923,0.00019078,2]
[315582434,1709134241796,-1213.6261085,0.00019177,2]
[315582435,1709134241806,-500.0,0.00019178,2]
[315582436,1709134241815,-500.0,0.00019178,2]
[315582437,1709134241825,-500.0,0.00019178,2]
[315582438,1709134241834,-500.0,0.00019178,2]
[315582439,1709134241844,-500.0,0.00019178,2]
[315582440,1709134241853,-500.0,0.00019178,2]
[315582441,1709134241863,-541.45,0.00019178,2]
[315582442,1709134241872,-500.0,0.00019178,2]
[315582443,1709134241881,-500.0,0.00019178,2]
[315582444,1709134241890,-501.03495227,0.00019178,2]
[315582445,1709134241902,-504.26102894,0.00019178,2]
[315582446,1709134241911,-500.0,0.00019178,2]
[315582447,1709134241921,-500.0,0.00019178,2]
[315582448,1709134241930,-500.0,0.00019178,2]
[315582449,1709134241939,-500.0,0.00019178,2]
[315582450,1709134241948,-257.36341085,0.00019178,2]
[315582451,1709134241957,-379.657685,0.00019178,2]
[315582452,1709134241966,-500.0,0.00019178,2]
[315582453,1709134241976,-500.0,0.00019178,2]
[315582454,1709134241985,-500.0,0.00019178,2]
[315582455,1709134241996,-500.0,0.00019178,2]
[315582456,1709134242005,-500.0,0.00019178,2]
[315582457,1709134242014,-500.0,0.00019178,2]